Workbook

Sheet College Student Budget
B1: COLLEGE STUDENT BUDGET TEMPLATE
B3: BUDGET OVERVIEW | C3: SEMESTER 1 | D3: SEMESTER 2 | E3: SEMESTER 3 | F3: SEMESTER 4 | H3: SEMESTER 4
B5: TOTAL INCOME | C5: =C24 -> 1800 | D5: =D24 -> 1700 | E5: =E24 -> 0 | F5: =F24 -> 0 | H5: =SUM(C5:F5) -> 3500
B6: TOTAL EXPENSES | C6: =C76 -> 2378 | D6: =D76 -> 900 | E6: =E76 -> 0 | F6: =F76 -> 0 | H6: =SUM(C6:F6) -> 3278
B8: INCOME LESS EXPENSES | C8: =C5-C6 -> -578 | D8: =D5-D6 -> 800 | E8: =E5-E6 -> 0 | F8: =F5-F6 -> 0 | H8: =H5-H6 -> 222
B10: INCOME | C10: SEMESTER 1 | D10: SEMESTER 2 | E10: SEMESTER 3 | F10: SEMESTER 4
B12: SALARY/WAGES | C12: 350 | D12: 350 | E12: 0 | F12: 0
B13: FROM PARENTS/GUARDIANS | C13: 100 | D13: 0 | E13: 0 | F13: 0
B14: FROM STUDENT LOANS | C14: 1000 | D14: 1000 | E14: 0 | F14: 0
B15: FROM SCHOLARSHIPS | C15: 0 | D15: 0 | E15: 0 | F15: 0
B16: FROM GRANTS | C16: 0 | D16: 0 | E16: 0 | F16: 0
B17: FROM FINANCIAL AID | C17: 350 | D17: 350 | E17: 0 | F17: 0
B18: TRANSFER FROM SAVINGS | C18: 0 | D18: 0 | E18: 0 | F18: 0
B19: OTHER | C19: 0 | D19: 0 | E19: 0 | F19: 0
B20: OTHER | C20: 0 | D20: 0 | E20: 0 | F20: 0
B21: OTHER | C21: 0 | D21: 0 | E21: 0 | F21: 0
B22: OTHER | C22: 0 | D22: 0 | E22: 0 | F22: 0
B24: TOTAL | C24: =SUM(C12:C22) -> 1800 | D24: =SUM(D12:D22) -> 1700 | E24: =SUM(E12:E22) -> 0 | F24: =SUM(F12:F22) -> 0
B26: EXPENSES | C26: SEMESTER 1 | D26: SEMESTER 2 | E26: SEMESTER 3 | F26: SEMESTER 4
B27: HOME & SCHOOL
B28: Tuition | C28: 750 | D28: 750 | E28: 0 | F28: 0
B29: Fees (Class, Parking, Labs, Clubs, Etc.) | C29: 25 | D29: 0 | E29: 0 | F29: 0
B30: Housing/Rent | C30: 40 | D30: 0 | E30: 0 | F30: 0
B31: Food Plan | C31: 44 | D31: 0 | E31: 0 | F31: 0
B32: Dorm/Room Furnishings | C32: 20 | D32: 0 | E32: 0 | F32: 0
B33: Textbooks | C33: 15 | D33: 0 | E33: 0 | F33: 0
B34: School Supplies | C34: 0 | D34: 0 | E34: 0 | F34: 0
B35: Internet | C35: 29 | D35: 0 | E35: 0 | F35: 0
B36: Cell Phone | C36: 0 | D36: 0 | E36: 0 | F36: 0
B37: Other | C37: 0 | D37: 0 | E37: 0 | F37: 0
B38: Other | C38: 0 | D38: 0 | E38: 0 | F38: 0
C39: =SUM(C28:C38) -> 923 | D39: =SUM(D28:D38) -> 750 | E39: =SUM(E28:E38) -> 0 | F39: =SUM(F28:F38) -> 0
B40: TRANSPORTATION
B41: Car Payments | C41: 250 | D41: 0 | E41: 0 | F41: 0
B42: Auto Insurance | C42: 100 | D42: 0 | E42: 0 | F42: 0
B43: Fuel | C43: 100 | D43: 150 | E43: 0 | F43: 0
B44: Public Transporation | C44: 0 | D44: 0 | E44: 0 | F44: 0
B45: Repairs/Maintenance | C45: 0 | D45: 0 | E45: 0 | F45: 0
B46: Registration/License | C46: 100 | D46: 0 | E46: 0 | F46: 0
B47: Other | C47: 0 | D47: 0 | E47: 0 | F47: 0
B48: Other | C48: 0 | D48: 0 | E48: 0 | F48: 0
C49: =SUM(C41:C48) -> 550 | D49: =SUM(D41:D48) -> 150 | E49: =SUM(E41:E48) -> 0 | F49: =SUM(F41:F48) -> 0
B50: DAILY LIVING
B51: Groceries | C51: 250 | D51: 0 | E51: 0 | F51: 0
B52: Dining Out | C52: 100 | D52: 0 | E52: 0 | F52: 0
B53: Clothing | C53: 0 | D53: 0 | E53: 0 | F53: 0
B54: Cleaning | C54: 0 | D54: 0 | E54: 0 | F54: 0
B55: Salon/Barber | C55: 20 | D55: 0 | E55: 0 | F55: 0
B56: Other | C56: 0 | D56: 0 | E56: 0 | F56: 0
B57: Other | C57: 0 | D57: 0 | E57: 0 | F57: 0
C58: =SUM(C51:C57) -> 370 | D58: =SUM(D51:D57) -> 0 | E58: =SUM(E51:E57) -> 0 | F58: =SUM(F51:F57) -> 0
B59: ENTERTAINMENT
B60: Video/DVD/Movies | C60: 250 | D60: 0 | E60: 0 | F60: 0
B61: Concerts/Plays | C61: 100 | D61: 0 | E61: 0 | F61: 0
B62: Sports | C62: 100 | D62: 0 | E62: 0 | F62: 0
B63: Outdoor Recreation | C63: 0 | D63: 0 | E63: 0 | F63: 0
B64: Other | C64: 0 | D64: 0 | E64: 0 | F64: 0
B65: Other | C65: 0 | D65: 0 | E65: 0 | F65: 0
C66: =SUM(C60:C65) -> 450 | D66: =SUM(D60:D65) -> 0 | E66: =SUM(E60:E65) -> 0 | F66: =SUM(F60:F65) -> 0
B67: HEALTH
B68: Student Health Insurance | C68: 65 | D68: 0 | E68: 0 | F68: 0
B69: Gym Membership | C69: 20 | D69: 0 | E69: 0 | F69: 0
B70: Doctors/Dentist Visits | C70: 0 | D70: 0 | E70: 0 | F70: 0
B71: Medicine/Prescriptions | C71: 0 | D71: 0 | E71: 0 | F71: 0
B72: Other | C72: 0 | D72: 0 | E72: 0 | F72: 0
B73: Other | C73: 0 | D73: 0 | E73: 0 | F73: 0
C74: =SUM(C68:C73) -> 85 | D74: =SUM(D68:D73) -> 0 | E74: 0 | F74: 0
B76: TOTAL | C76: =SUM(C39,C49,C58,C66,C74) -> 2378 | D76: =SUM(D39,D49,D58,D66,D74) -> 900 | E76: =SUM(E39,E49,E58,E66,E74) -> 0 | F76: =SUM(F39,F49,F58,F66,F74) -> 0
B78: CLICK HERE TO CREATE COLLEGE STUDENT BUDGET TEMPLATES IN SMARTSHEET

Sheet College Expense Estimator
B1: COLLEGE STUDENT BUDGET TEMPLATE
B3: COLLEGE EXPENSE ESTIMATOR | C3: TOTAL NEEDED EACH MONTH | E3: =SUMIF(D6:D31,"Yes",C6:C31) -> 595
B5: DESCRIPTION | C5: AMOUNT | D5: ADD TO TOTAL? | E5: NOTES | G5: ADD TO TOTAL KEY
B6: Laundry | C6: 25 | D6: NO | E6: Take to Mom's | G6: NO
B7: Food (main meals) | C7: 95 | D7: YES | G7: YES
B8: Food (snacks, coffee, etc.) | C8: 25 | D8: YES
B9: Heath Insurance | C9: 0 | D9: NO | E9: On Mom's plan
B10: Medical expenses | C10: 50 | D10: YES | E10: Asthma prescription
B11: Clubs/Organizations | C11: 10 | D11: YES | E11: Breakfast Club
B12: Clothes | C12: 60 | D12: NO | E12: Get Mom to buy
B13: Entertainment | C13: 50 | D13: YES | E13: Includes music downloads
B14: Hygiene (deodorant/shampoo/etc.) | C14: 20 | D14: YES
B15: Haircut/manicure/pedicure | C15: 10 | D15: YES | E15: Go to beauty school
B16: Parking | C16: 15 | D16: YES
B17: Car Payment | C17: 175 | D17: YES | E17: See if Dad will pay half
B18: Car Insurance | C18: 0 | D18: NO | E18: Mom will cover cost
B19: Gas | C19: 50 | D19: YES | E19: Will take bus most of the time
B20: Other transportation | C20: 15 | D20: YES | E20: Bus pass
B21: Cell phone | C21: 20 | D21: NO | E21: Get Mom to cover cost
B22: Cable | C22: 50 | D22: NO | E22: Get Dad to cover cost
B23: Internet service | C23: 0 | D23: NO | E23: Included in dorm cost
B24: Utilities (electricity/natural gas) | C24: 0 | D24: NO | E24: Included in dorm cost
B25: Gym membership | C25: 35 | D25: NO | E25: Can use campus facility instead
B26: Computer supplies (printer ink/paper) | C26: 10 | D26: YES
B27: Emergency money | C27: 30 | D27: YES
B28: Other | C28: 0 | D28: NO
B29: Other | C29: 35 | D29: NO
B30: Other | C30: 10 | D30: YES
B31: Other | C31: 30 | D31: YES
